fUST/lending_fUST_20250530
["ID","MTS","AMOUNT","RATE_DAILY","PERIOD"]
[363085615,1748572243853,-430.0,0.00019178,2]
[363085616,1748572243863,-500.0,0.00019178,2]
[363085617,1748572243873,-500.0,0.00019178,2]
[363085618,1748572243882,-480.87223553,0.00019178,2]
[363085619,1748572243891,-500.0,0.00019178,2]
[363085620,1748572243901,-500.0,0.00019178,2]
[363085621,1748572243915,-500.0,0.00019178,2]
[363085622,1748572243933,-500.0,0.00019178,2]
[363085623,1748572243947,-430.0,0.00019178,2]
[363085624,1748572243962,-430.0,0.00019178,2]
[363085625,1748572243977,-400.0,0.00019178,2]
[363085626,1748572243994,-430.0,0.00019178,2]
[363085627,1748572244008,-454.81179761,0.00019178,2]
[363085628,1748572244020,-177.307341,0.00019178,2]
[363085629,1748572244034,-319.10593188,0.00019198,2]
[363085630,1748572244048,-1396.39216755,0.00019314,2]
[363085631,1748572244063,-430.0,0.00019452,2]
[363085632,1748572244078,-430.0,0.00019452,2]
[363085633,1748572244093,-430.0,0.00019452,2]
[363085634,1748572244106,-430.0,0.00019452,2]
[363085635,1748572244122,-430.0,0.00019452,2]
[363085636,1748572244136,-403.24618801,0.00019452,2]
[363085637,1748572244150,-430.0,0.00019452,2]
[363085638,1748572244165,-458.67074317,0.00019452,2]
[363085639,1748572244180,-430.0,0.00019452,2]
[363085640,1748572244194,-430.0,0.00019452,2]
[363085641,1748572244205,-426.71157384,0.00019452,2]
[363085642,1748572244217,-400.0,0.00019452,2]
[363085643,1748572244232,-408.82957007,0.00019452,2]
[363085644,1748572244246,-430.0,0.00019452,2]
[363085645,1748572244258,-437.9212305,0.00019452,2]
[363085646,1748572244270,-468.87322448,0.00019452,2]
[363085647,1748572244285,-371.64994425,0.00019452,2]
[363085648,1748572244297,-188.70873862,0.00019452,2]
[363085649,1748572244310,-430.0,0.00019452,2]
[363085650,1748572244322,-430.0,0.00019452,2]
[363085651,1748572244335,-432.81345013,0.00019452,2]
[363085652,1748572244347,-437.1605419,0.00019452,2]
[363085653,1748572244360,-166.21888878,0.00019452,2]
[363085654,1748572244372,-430.0,0.00019452,2]
[363085655,1748572244385,-430.0,0.00019452,2]
[363085656,1748572244397,-370.0,0.00019452,2]
[363085657,1748572244409,-400.0,0.00019452,2]
[363085658,1748572244421,-430.0,0.00019452,2]
[363085659,1748572244434,-430.0,0.00019452,2]
[363085660,1748572244447,-430.0,0.00019452,2]
[363085661,1748572244460,-430.0,0.00019452,2]
[363085662,1748572244473,-435.6249096,0.00019452,2]
[363085663,1748572244485,-430.0,0.00019452,2]
[363085664,1748572244497,-430.0,0.00019452,2]
[363085665,1748572244509,-430.0,0.00019452,2]
[363085666,1748572244522,-430.0,0.00019452,2]
[363085667,1748572244534,-514.68391956,0.00019452,2]
[363085668,1748572244547,-430.0,0.00019452,2]
[363085669,1748572244560,-430.0,0.00019452,2]
[363085670,1748572244573,-430.0,0.00019452,2]
[363085671,1748572244586,-430.0,0.00019452,2]
[363085672,1748572244599,-404.10985089,0.00019452,2]
[363085673,1748572244611,-430.0,0.00019452,2]
[363085674,1748572244624,-430.0,0.00019452,2]
[363085675,1748572244636,-430.0,0.00019452,2]
[363085676,1748572244648,-350.0,0.00019452,2]
[363085677,1748572244661,-432.027105,0.00019452,2]
[363085678,1748572244673,-430.0,0.00019452,2]
[363085679,1748572244685,-430.0,0.00019452,2]
[363085680,1748572244700,-430.0,0.00019452,2]
[363085681,1748572244712,-430.0,0.00019452,2]
[363085682,1748572244724,-430.0,0.00019452,2]
[363085683,1748572244738,-430.0,0.00019452,2]
[363085684,1748572244751,-430.0,0.00019452,2]
[363085685,1748572244763,-430.0,0.00019452,2]
[363085686,1748572244776,-430.0,0.00019452,2]
[363085687,1748572244788,-430.0,0.00019452,2]
[363085688,1748572244801,-430.0,0.00019452,2]
[363085689,1748572244813,-370.0,0.00019452,2]
[363085690,1748572244825,-430.0,0.00019452,2]
[363085691,1748572244837,-371.75364203,0.00019452,2]
[363085692,1748572244852,-337.69099194,0.00019452,2]
[363085693,1748572244865,-430.0,0.00019452,2]
[363085694,1748572244878,-430.0,0.00019452,2]
[363085695,1748572244891,-390.78128537,0.00019452,2]
[363085696,1748572244903,-430.0,0.00019452,2]
[363085697,1748572244913,-430.0,0.00019452,2]
[363085698,1748572244922,-430.0,0.00019452,2]
[363085699,1748572244933,-198.46715736,0.00019452,2]
[363085700,1748572244942,-435.41676401,0.00019452,2]
[363085701,1748572244952,-456.91233808,0.00019452,2]
[363085702,1748572244961,-430.0,0.00019452,2]
[363085703,1748572245128,-430.0,0.00019452,2]
[363085704,1748572245147,-430.0,0.00019452,2]
[363085705,1748572245156,-400.0,0.00019452,2]
[363085706,1748572245164,-430.0,0.00019452,2]
[363085707,1748572245173,-430.0,0.00019452,2]
[363085708,1748572245181,-420.0,0.00019452,2]
[363085709,1748572245191,-430.0,0.00019452,2]
[363085710,1748572245201,-430.0,0.00019452,2]
[363085711,1748572245210,-430.0,0.00019452,2]
[363085712,1748572245219,-399.38697107,0.00019452,2]
[363085713,1748572245228,-430.0,0.00019452,2]
[363085714,1748572245236,-430.0,0.00019452,2]
[363085715,1748572245246,-430.0,0.00019452,2]
[363085716,1748572245255,-400.62651728,0.00019452,2]
[363085717,1748572245265,-430.0,0.00019452,2]
[363085718,1748572245286,-205.63454713,0.00019452,2]
[363085719,1748572245296,-272.79497947,0.00019452,2]
[363085720,1748572245306,-430.0,0.00019452,2]
[363085721,1748572245315,-327.81448343,0.00019452,2]
[363085722,1748572245326,-430.0,0.00019452,2]
[363085723,1748572245337,-562.29336792,0.00019452,2]
[363085724,1748572245347,-430.0,0.00019452,2]
[363085725,1748572245357,-430.0,0.00019452,2]
[363085726,1748572245366,-436.73186742,0.00019452,2]
[363085727,1748572245376,-443.0829876,0.00019452,2]
[363085728,1748572245385,-430.0,0.00019452,2]
[363085729,1748572245395,-430.0,0.00019452,2]
[363085730,1748572245405,-442.82929489,0.00019452,2]
[363085731,1748572245415,-234.08680792,0.00019452,2]
[363085732,1748572245425,-430.0,0.00019452,2]
[363085733,1748572245434,-523.77120061,0.00019452,2]
[363085734,1748572245444,-430.0,0.00019452,2]
[363085735,1748572245454,-455.07121492,0.00019452,2]
[363085736,1748572245463,-430.0,0.00019452,2]
[363085737,1748572245473,-430.0,0.00019452,2]
[363085738,1748572245483,-437.5980421,0.00019452,2]
[363085739,1748572245492,-430.0,0.00019452,2]
[363085740,1748572245502,-455.98865843,0.00019452,2]
[363085741,1748572245512,-452.1441177,0.00019452,2]
[363085742,1748572245521,-430.0,0.00019452,2]
[363085743,1748572245531,-430.0,0.00019452,2]
[363085744,1748572245540,-430.0,0.00019452,2]
[363085745,1748572245549,-430.0,0.00019452,2]
[363085746,1748572245558,-439.83429987,0.00019452,2]
[363085747,1748572245568,-430.0,0.00019452,2]
[363085749,1748572245578,-400.0,0.00019452,2]
[363085750,1748572245587,-430.0,0.00019452,2]
[363085751,1748572245597,-230.44978033,0.00019452,2]
[363085752,1748572245606,-430.0,0.00019452,2]
[363085753,1748572245617,-151.0,0.00019452,2]
[363085754,1748572245626,-430.0,0.00019452,2]
[363085755,1748572245636,-430.0,0.00019452,2]
[363085756,1748572245645,-430.0,0.00019452,2]
[363085757,1748572245655,-430.0,0.00019452,2]
[363085758,1748572245664,-430.0,0.00019452,2]
[363085759,1748572245673,-430.0,0.00019452,2]
[363085760,1748572245683,-151.0,0.00019452,2]
[363085761,1748572245694,-304.53541914,0.00019452,2]
[363085763,1748572245704,-151.0,0.00019452,2]
[363085764,1748572245714,-430.0,0.00019452,2]
[363085765,1748572245723,-151.0,0.00019452,2]
[363085766,1748572245734,-430.0,0.00019452,2]
[363085767,1748572245744,-430.0,0.00019452,2]
[363085768,1748572245753,-430.0,0.00019452,2]
[363085769,1748572245763,-477.90193848,0.00019452,2]
[363085770,1748572245774,-478.34345617,0.00019452,2]
[363085771,1748572245784,-151.0,0.00019452,2]
[363085772,1748572245793,-430.0,0.00019452,2]
[363085773,1748572245803,-443.76625275,0.00019452,2]
[363085774,1748572245812,-430.0,0.00019452,2]
[363085775,1748572245822,-430.0,0.00019452,2]
[363085776,1748572245832,-430.0,0.00019452,2]
[363085777,1748572245841,-430.0,0.00019452,2]
[363085778,1748572245851,-430.0,0.00019452,2]
[363085779,1748572245861,-438.40089247,0.00019452,2]
[363085780,1748572245871,-430.0,0.00019452,2]
[363085781,1748572245880,-430.0,0.00019452,2]
[363085782,1748572245889,-410.66100597,0.00019452,2]
[363085783,1748572245899,-447.35834103,0.00019452,2]
[363085785,1748572245909,-430.0,0.00019452,2]
[363085787,1748572245918,-430.0,0.00019452,2]
[363085789,1748572245928,-430.0,0.00019452,2]
[363085790,1748572245938,-457.02995067,0.00019452,2]
[363085792,1748572245948,-2316.582909,0.00019452,2]
[363085794,1748572245958,-604.85,0.00019452,2]
[363085796,1748572245967,-2316.582909,0.00019452,2]
[363085798,1748572245976,-590.03,0.00019452,2]
[363085800,1748572245985,-430.0,0.00019452,2]
[363085802,1748572245995,-437.85237846,0.00019452,2]
[363085803,1748572246004,-430.0,0.00019452,2]
[363085805,1748572246014,-430.0,0.00019452,2]
[363085806,1748572246022,-436.43529431,0.00019452,2]
[363085808,1748572246031,-430.0,0.00019452,2]
[363085810,1748572246041,-430.0,0.00019452,2]
[363085812,1748572246050,-386.59918037,0.00019452,2]
[363085814,1748572246060,-430.0,0.00019452,2]
[363085816,1748572246069,-321.24148444,0.00019452,2]
[363085818,1748572246078,-430.0,0.00019452,2]
[363085820,1748572246088,-544.75,0.00019452,2]
[363085822,1748572246097,-436.01253595,0.00019452,2]
[363085824,1748572246106,-430.0,0.00019452,2]
[363085826,1748572246116,-430.0,0.00019452,2]
[363085828,1748572246126,-430.0,0.00019452,2]
[363085830,1748572246135,-244.04923394,0.00019452,2]
[363085832,1748572246145,-430.0,0.00019452,2]
[363085834,1748572246155,-217.53541266,0.00019452,2]
[363085836,1748572246164,-430.0,0.00019452,2]
[363085838,1748572246174,-430.0,0.00019452,2]
[363085840,1748572246183,-430.0,0.00019452,2]
[363085842,1748572246192,-430.0,0.00019452,2]
[363085844,1748572246202,-358.090129,0.00019452,2]
[363085846,1748572246211,-473.71481268,0.00019452,2]
[363085847,1748572246220,-430.0,0.00019452,2]
[363085850,1748572246230,-430.0,0.00019452,2]
[363085851,1748572246239,-151.0,0.00019452,2]
[363085853,1748572246249,-439.76137931,0.00019452,2]
[363085855,1748572246258,-180.740501,0.00019452,2]
[363085857,1748572246268,-180.740501,0.00019452,2]
[363085859,1748572246278,-436.52516877,0.00019452,2]
[363085861,1748572246287,-433.84773755,0.00019452,2]
[363085863,1748572246297,-438.86003611,0.00019452,2]
[363085865,1748572246308,-430.0,0.00019452,2]
[363085867,1748572246317,-438.07753015,0.00019452,2]
[363085869,1748572246327,-430.0,0.00019452,2]
[363085871,1748572246336,-430.0,0.00019452,2]
[363085873,1748572246347,-430.0,0.00019452,2]
[363085875,1748572246357,-430.0,0.00019452,2]
[363085877,1748572246366,-430.0,0.00019452,2]
[363085879,1748572246376,-430.0,0.00019452,2]
[363085881,1748572246386,-430.0,0.00019452,2]
[363085883,1748572246395,-731.502552,0.00019452,2]
[363085885,1748572246405,-303.01102248,0.00019452,2]
[363085887,1748572246414,-731.502552,0.00019452,2]
[363085888,1748572246425,-430.0,0.00019452,2]
[363085891,1748572246435,-430.0,0.00019452,2]
[363085893,1748572246445,-1701.04,0.00019452,2]
[363085895,1748572246455,-430.0,0.00019452,2]
[363085897,1748572246465,-430.0,0.00019452,2]
[363085899,1748572246475,-430.0,0.00019452,2]
[363085901,1748572246485,-989.49,0.00019452,2]
[363085903,1748572246495,-430.0,0.00019452,2]
[363085905,1748572246505,-430.0,0.00019452,2]
[363085907,1748572246515,-430.0,0.00019452,2]
[363085909,1748572246525,-430.0,0.00019452,2]
[363085911,1748572246535,-430.0,0.00019452,2]
[363085913,1748572246545,-438.02812103,0.00019452,2]
[363085915,1748572246556,-430.0,0.00019452,2]
[363085917,1748572246566,-440.44697408,0.00019452,2]
[363085919,1748572246576,-430.0,0.00019452,2]
[363085921,1748572246585,-457.84,0.00019452,2]
[363085923,1748572246595,-305.201031,0.00019452,2]
[363085925,1748572246604,-407.37146288,0.00019452,2]
[363085927,1748572246614,-430.0,0.00019452,2]
[363085929,1748572246624,-305.201031,0.00019452,2]
[363085931,1748572246634,-430.0,0.00019452,2]
[363085933,1748572246643,-668.64,0.00019452,2]
[363085935,1748572246652,-440.61068936,0.00019452,2]
[363085937,1748572246662,-430.0,0.00019452,2]
[363085939,1748572246671,-430.0,0.00019452,2]
[363085941,1748572246681,-477.42,0.00019452,2]
[363085943,1748572246691,-151.0,0.00019452,2]
[363085945,1748572246703,-433.70165519,0.00019452,2]
[363085947,1748572246712,-402.16170362,0.00019452,2]
[363085949,1748572246721,-430.0,0.00019452,2]
[363085951,1748572246730,-430.0,0.00019452,2]
[363085953,1748572246741,-430.0,0.00019452,2]
[363085955,1748572246750,-430.0,0.00019452,2]
[363085957,1748572246759,-430.0,0.00019452,2]
[363085959,1748572246768,-458.86,0.00019452,2]
[363085961,1748572246778,-430.0,0.00019452,2]
[363085963,1748572246787,-400.94509917,0.00019452,2]
[363085965,1748572246796,-436.52321224,0.00019452,2]
[363085967,1748572246806,-1307.48,0.00019452,2]
[363085969,1748572246816,-436.97986081,0.00019452,2]
[363085971,1748572246826,-1770.07,0.00019452,2]
[363085973,1748572246836,-430.0,0.00019452,2]
[363085975,1748572246845,-272.070373,0.00019452,2]
[363085977,1748572246854,-430.0,0.00019452,2]
[363085979,1748572246864,-430.0,0.00019452,2]
[363085981,1748572246873,-430.0,0.00019452,2]
[363085983,1748572246882,-430.0,0.00019452,2]
[363085985,1748572246891,-430.0,0.00019452,2]
[363085987,1748572246900,-430.0,0.00019452,2]
[363085989,1748572246909,-430.0,0.00019452,2]
[363085990,1748572246918,-2734.81,0.00019452,2]
[363085992,1748572246928,-430.0,0.00019452,2]
[363085994,1748572246938,-430.0,0.00019452,2]
[363085997,1748572246947,-430.0,0.00019452,2]
[363086000,1748572246957,-552.21,0.00019452,2]
[363086003,1748572246967,-431.36279075,0.00019452,2]
[363086006,1748572246976,-430.0,0.00019452,2]
[363086009,1748572246985,-433.57943374,0.00019452,2]
[363086012,1748572246995,-430.0,0.00019452,2]
[363086014,1748572247004,-430.0,0.00019452,2]
[363086016,1748572247013,-430.0,0.00019452,2]
[363086019,1748572247022,-459.01,0.00019452,2]
[363086022,1748572247033,-430.0,0.00019452,2]
[363086026,1748572247042,-430.0,0.00019452,2]
[363086028,1748572247052,-430.0,0.00019452,2]
[363086031,1748572247061,-430.0,0.00019452,2]
[363086034,1748572247071,-430.87452422,0.00019452,2]
[363086036,1748572247079,-430.0,0.00019452,2]
[363086038,1748572247088,-4126.55,0.00019452,2]
[363086040,1748572247097,-430.0,0.00019452,2]
[363086042,1748572247106,-430.0,0.00019452,2]
[363086044,1748572247116,-430.0,0.00019452,2]
[363086046,1748572247125,-430.0,0.00019452,2]
[363086048,1748572247134,-617.297972,0.00019452,2]
[363086050,1748572247143,-430.0,0.00019452,2]
[363086052,1748572247152,-430.0,0.00019452,2]
[363086054,1748572247161,-430.0,0.00019452,2]
[363086056,1748572247170,-438.54422012,0.00019452,2]
[363086058,1748572247179,-617.297972,0.00019452,2]
[363086060,1748572247189,-430.0,0.00019452,2]
[363086062,1748572247198,-430.0,0.00019452,2]
[363086064,1748572247207,-430.0,0.00019452,2]
[363086066,1748572247216,-436.14059232,0.00019452,2]
[363086068,1748572247226,-534.82105401,0.00019452,2]
[363086070,1748572247235,-430.0,0.00019452,2]
[363086072,1748572247245,-439.45499039,0.00019452,2]
[363086074,1748572247254,-430.0,0.00019452,2]
[363086076,1748572247264,-430.0,0.00019452,2]
[363086078,1748572247273,-430.0,0.00019452,2]
[363086080,1748572247282,-430.0,0.00019452,2]
[363086082,1748572247291,-151.0,0.00019452,2]
[363086084,1748572247301,-430.0,0.00019452,2]
[363086086,1748572247310,-430.0,0.00019452,2]
[363086088,1748572247320,-430.0,0.00019452,2]
[363086090,1748572247329,-430.0,0.00019452,2]
[363086092,1748572247339,-151.0,0.00019452,2]
[363086094,1748572247349,-511.12,0.00019452,2]
[363086096,1748572247358,-319.826373,0.00019452,2]
[363086098,1748572247368,-430.0,0.00019452,2]
[363086100,1748572247377,-430.0,0.00019452,2]
[363086102,1748572247387,-430.0,0.00019452,2]
[363086104,1748572247397,-319.826373,0.00019452,2]
[363086105,1748572247407,-430.0,0.00019452,2]
[363086107,1748572247417,-430.0,0.00019452,2]
[363086109,1748572247427,-550.68,0.00019452,2]
[363086111,1748572247437,-430.0,0.00019452,2]
[363086113,1748572247446,-1958.04,0.00019452,2]
[363086115,1748572247456,-2659.21,0.00019452,2]
[363086117,1748572247466,-1164.09,0.00019452,2]
[363086119,1748572247475,-3842.32,0.00019452,2]
[363086121,1748572247484,-430.0,0.00019452,2]
[363086123,1748572247494,-476.96,0.00019452,2]
[363086125,1748572247503,-430.0,0.00019452,2]
[363086127,1748572247512,-430.0,0.00019452,2]
[363086129,1748572247522,-430.0,0.00019452,2]
[363086131,1748572247531,-431.68939279,0.00019452,2]
[363086133,1748572247540,-430.0,0.00019452,2]
[363086135,1748572247551,-151.0,0.00019452,2]
[363086137,1748572247560,-655.8,0.00019452,2]
[363086139,1748572247569,-151.0,0.00019452,2]
[363086141,1748572247579,-430.0,0.00019452,2]
[363086143,1748572247588,-430.0,0.00019452,2]
[363086149,1748572247599,-430.0,0.00019452,2]
[363086150,1748572247713,-2404.75,0.00019452,2]
[363086151,1748572247722,-438.10184778,0.00019452,2]
[363086152,1748572247731,-151.0,0.00019452,2]
[363086153,1748572247741,-430.0,0.00019452,2]
[363086154,1748572247750,-151.0,0.00019452,2]
[363086155,1748572247759,-430.0,0.00019452,2]
[363086156,1748572247771,-426.11699442,0.00019452,2]
[363086157,1748572247781,-430.0,0.00019452,2]
[363086158,1748572247790,-558.75,0.00019452,2]
[363086159,1748572247800,-430.0,0.00019452,2]
[363086160,1748572247809,-430.0,0.00019452,2]
[363086161,1748572247818,-151.0,0.00019452,2]
[363086162,1748572247828,-184.30421,0.00019452,2]
[363086163,1748572247837,-430.0,0.00019452,2]
[363086164,1748572247846,-1142.34,0.00019452,2]
[363086165,1748572247856,-979.18,0.00019452,2]
[363086166,1748572247865,-673.14,0.00019452,2]
[363086167,1748572247875,-430.0,0.00019452,2]
[363086168,1748572247884,-430.0,0.00019452,2]
[363086169,1748572247894,-430.0,0.00019452,2]
[363086170,1748572247904,-430.0,0.00019452,2]
[363086171,1748572247913,-582.41,0.00019452,2]
[363086172,1748572247922,-430.0,0.00019452,2]
[363086173,1748572247932,-430.0,0.00019452,2]
[363086174,1748572247941,-430.0,0.00019452,2]
[363086175,1748572247951,-430.0,0.00019452,2]
[363086176,1748572247960,-430.0,0.00019452,2]
[363086177,1748572247970,-430.0,0.00019452,2]
[363086178,1748572247979,-430.0,0.00019452,2]
[363086179,1748572247989,-430.0,0.00019452,2]
[363086180,1748572247998,-435.08723823,0.00019452,2]
[363086181,1748572248007,-151.0,0.00019452,2]
[363086182,1748572248016,-430.0,0.00019452,2]
[363086183,1748572248025,-406.30004039,0.00019452,2]
[363086184,1748572248033,-984.09,0.00019452,2]
[363086185,1748572248043,-430.0,0.00019452,2]
[363086186,1748572248053,-430.0,0.00019452,2]
[363086187,1748572248062,-430.0,0.00019452,2]
[363086188,1748572248071,-151.0,0.00019452,2]
[363086189,1748572248079,-430.0,0.00019452,2]
[363086190,1748572248089,-430.0,0.00019452,2]
[363086191,1748572248098,-430.0,0.00019452,2]
[363086192,1748572248107,-430.0,0.00019452,2]
[363086193,1748572248116,-430.0,0.00019452,2]
[363086194,1748572248126,-430.0,0.00019452,2]
[363086195,1748572248136,-430.0,0.00019452,2]
[363086196,1748572248145,-430.0,0.00019452,2]
[363086197,1748572248154,-430.0,0.00019452,2]
[363086198,1748572248164,-430.0,0.00019452,2]
[363086199,1748572248173,-430.0,0.00019452,2]
[363086200,1748572248184,-430.0,0.00019452,2]
[363086201,1748572248193,-500.16,0.00019452,2]
[363086202,1748572248202,-1160.99,0.00019452,2]
[363086203,1748572248213,-420.66323776,0.00019452,2]
[363086204,1748572248223,-475.31,0.00019452,2]
[363086206,1748572248232,-588.487475,0.00019452,2]
[363086208,1748572248241,-431.14606688,0.00019452,2]
[363086210,1748572248251,-588.487475,0.00019452,2]
[363086212,1748572248260,-430.0,0.00019452,2]
[363086214,1748572248269,-183.55907475,0.00019452,2]
[363086215,1748572248278,-416.07796276,0.00019452,2]
[363086217,1748572248288,-247.766992,0.00019452,2]
[363086219,1748572248297,-430.0,0.00019452,2]
[363086220,1748572248307,-430.0,0.00019452,2]
[363086222,1748572248316,-430.0,0.00019452,2]
[363086223,1748572248326,-247.766992,0.00019452,2]
[363086224,1748572248335,-405.56250765,0.00019452,2]
[363086225,1748572248344,-151.0,0.00019452,2]
[363086226,1748572248354,-151.0,0.00019452,2]
[363086227,1748572248363,-430.0,0.00019452,2]
[363086228,1748572248373,-430.0,0.00019452,2]
[363086229,1748572248382,-430.0,0.00019452,2]
[363086230,1748572248391,-430.0,0.00019452,2]
[363086231,1748572248400,-430.0,0.00019452,2]
[363086232,1748572248410,-430.0,0.00019452,2]
[363086233,1748572248419,-1870.6,0.00019452,2]
[363086234,1748572248428,-430.0,0.00019452,2]
[363086235,1748572248437,-1000.0,0.00019452,2]
[363086236,1748572248446,-430.0,0.00019452,2]
[363086237,1748572248456,-332.36565037,0.00019452,2]
[363086238,1748572248467,-430.0,0.00019452,2]
[363086239,1748572248476,-430.0,0.00019452,2]
[363086240,1748572248486,-667.99,0.00019452,2]
[363086241,1748572248495,-430.0,0.00019452,2]
[363086242,1748572248505,-430.0,0.00019452,2]
[363086243,1748572248514,-430.0,0.00019452,2]
[363086244,1748572248525,-430.0,0.00019452,2]
[363086245,1748572248534,-430.0,0.00019452,2]
[363086246,1748572248544,-430.0,0.00019452,2]
[363086247,1748572248554,-475.77747233,0.00019452,2]
[363086249,1748572248564,-430.0,0.00019452,2]
[363086251,1748572248573,-430.0,0.00019452,2]
[363086252,1748572248583,-436.94833396,0.00019452,2]
[363086253,1748572248592,-163.12026565,0.00019452,2]
[363086254,1748572248601,-430.0,0.00019452,2]
[363086255,1748572248611,-430.0,0.00019452,2]
[363086256,1748572248620,-430.0,0.00019452,2]
[363086257,1748572248630,-430.0,0.00019452,2]
[363086258,1748572248639,-729.73,0.00019452,2]
[363086259,1748572248649,-430.0,0.00019452,2]
[363086260,1748572248658,-430.0,0.00019452,2]
[363086261,1748572248668,-442.89870059,0.00019452,2]
[363086262,1748572248677,-430.0,0.00019452,2]
[363086263,1748572248687,-2839.9,0.00019452,2]
[363086264,1748572248699,-430.0,0.00019452,2]
[363086265,1748572248709,-430.0,0.00019452,2]
[363086266,1748572248718,-430.0,0.00019452,2]
[363086267,1748572248728,-430.0,0.00019452,2]
[363086268,1748572248738,-430.0,0.00019452,2]
[363086269,1748572248747,-430.0,0.00019452,2]
[363086270,1748572248757,-2425.45,0.00019452,2]
[363086271,1748572248767,-430.0,0.00019452,2]
[363086272,1748572248778,-422.43167697,0.00019452,2]
[363086273,1748572248789,-430.0,0.00019452,2]
[363086274,1748572248799,-430.0,0.00019452,2]
[363086275,1748572248810,-500.51562056,0.00019473,2]
[363086276,1748572248821,-500.0,0.00019473,2]
[363086277,1748572248830,-367.42700592,0.00019473,2]
[363086278,1748572248840,-503.25004372,0.00019473,2]
[363086279,1748572248849,-501.54907328,0.00019473,2]
[363086280,1748572248859,-500.0,0.00019473,2]
[363086281,1748572248870,-55516.4724293,0.000195,2]
[363086282,1748572248883,-800.0,0.00019509,2]
[363086283,1748572248893,-800.0,0.0001951,2]
[363086284,1748572248904,-1396.39216755,0.00019521,2]
[363086285,1748572248915,-800.0,0.00019522,2]
[363086286,1748572248925,-800.0,0.00019555,2]
[363086287,1748572248935,-500.0,0.00019616,2]
[363086288,1748572248945,-205.53737794,0.00019616,2]
[363086289,1748572248955,-500.0,0.00019616,2]
[363086290,1748572248965,-151.0,0.00019616,2]
[363086291,1748572248975,-1537.84871278,0.00019626,2]
[363086292,1748572248985,-500.0,0.00019643,2]
[363086293,1748572248995,-500.0,0.00019643,2]
[363086294,1748572249004,-151.0,0.00019643,2]
[363086295,1748572249013,-204.09280526,0.00019643,2]
[363086296,1748572249023,-800.0,0.00019649,2]
[363086297,1748572249031,-507.38995285,0.00019649,2]
[363086298,1748572249040,-500.0,0.00019671,2]
[363086299,1748572249050,-279.50551248,0.00019671,2]
[363086300,1748572249062,-198.0,0.00019671,2]
[363086301,1748572249073,-500.0,0.00019698,2]
[363086302,1748572249082,-1000.0,0.00019721,2]
[363086303,1748572249092,-183.3498233,0.00019726,2]
[363086304,1748572249103,-151.0,0.00019726,2]
[363086305,1748572249112,-151.0,0.00019726,2]
[363086306,1748572249122,-151.0,0.00019726,2]
[363086307,1748572249132,-245.929422,0.00019726,2]
[363086308,1748572249143,-151.0,0.00019726,2]
[363086309,1748572249152,-151.0,0.00019726,2]
[363086310,1748572249162,-151.0,0.00019726,2]
[363086311,1748572249173,-430.0,0.00019726,2]
[363086312,1748572249183,-151.0,0.00019726,2]
[363086313,1748572249193,-406.40297057,0.00019726,2]
[363086314,1748572249203,-535.04161877,0.00019726,2]